[Event "FIDE Women World Blitz 2021"]
[Site "Warsaw"]
[Date "2021.12.29"]
[Round "8.15"]
[White "Muzychuk, Anna"]
[Black "Lach, Aleksandra"]
[Result "1-0"]
[ECO "A02"]
[WhiteElo "2533"]
[BlackElo "2204"]
[Annotator "ChessBase"]
[PlyCount "69"]
[EventDate "2021.12.29"]
[EventType "swiss"]
[EventCountry "POL"]
[Tiebreak "Cut1 Buchholz"]
[SourceTitle "playchess.com"]
[Source "ChessBase"]
[SourceQuality "1"]
[TimeControl "180+2"]

1. f4 {[%emt 0:00:01]} b5 {[%emt 0:00:05]} 2. e4 {[%emt 0:00:06]} a6 {[%emt 0:
00:00]} 3. Nf3 {[%emt 0:00:03]} Bb7 {[%emt 0:00:02]} 4. d3 {[%emt 0:00:02]} e6
{[%emt 0:00:06]} 5. g3 {[%emt 0:00:03]} d5 {[%emt 0:00:02]} 6. e5 {[%emt 0:00:
01]} h5 {[%emt 0:00:19]} 7. d4 {[%emt 0:00:11]} Ne7 {[%emt 0:00:12]} 8. c3 {
[%emt 0:00:15]} Nf5 {[%emt 0:00:23]} 9. Bd3 {[%emt 0:00:04]} g6 {[%emt 0:00:02]
} 10. O-O {[%emt 0:00:09]} c5 {[%emt 0:00:12]} 11. a4 {[%emt 0:00:33]} Qb6 {
[%emt 0:00:01]} 12. axb5 {[%emt 0:00:10]} axb5 {[%emt 0:00:01]} 13. Rxa8 Bxa8 {
[%emt 0:00:00]} 14. Bxf5 {[%emt 0:00:06]} gxf5 {[%emt 0:00:04]} 15. Be3 {
[%emt 0:00:01]} c4 {[%emt 0:00:11]} 16. b4 {[%emt 0:00:02]} cxb3 {[%emt 0:00:
26]} 17. Qxb3 {[%emt 0:00:03]} b4 {[%emt 0:00:00]} 18. Nbd2 {[%emt 0:00:07]}
Nc6 {[%emt 0:00:22]} 19. Ra1 {[%emt 0:00:11]} Bb7 {[%emt 0:00:00]} 20. Ne1 {
[%emt 0:00:31]} Be7 {[%emt 0:00:06]} 21. Nd3 {[%emt 0:00:04]} O-O {[%emt 0:00:
09]} 22. cxb4 {[%emt 0:00:21]} Ba6 {[%emt 0:00:23]} 23. Nc5 {[%emt 0:00:09]}
Bc8 {[%emt 0:00:10]} 24. b5 {[%emt 0:00:10]} Nxd4 {[%emt 0:00:01]} 25. Bxd4 {
[%emt 0:00:03]} Bxc5 {[%emt 0:00:02]} 26. Bxc5 {[%emt 0:00:03]} Qxc5+ 27. Kg2 {
[%emt 0:00:00]} d4 {[%emt 0:00:05]} 28. Qf3 {[%emt 0:00:04]} Qxb5 {[%emt 0:00:
02]} 29. Qxh5 {[%emt 0:00:02]} Bb7+ {[%emt 0:00:05]} 30. Kh3 {[%emt 0:00:01]}
Qb2 {[%emt 0:00:13]} 31. Rd1 {[%emt 0:00:07]} Be4 {[%emt 0:00:09]} 32. Nxe4 {
[%emt 0:00:05]} fxe4 {[%emt 0:00:02]} 33. Qg5+ {[%emt 0:00:04]} Kh8 {[%emt 0:
00:03]} 34. f5 {[%emt 0:00:02]} d3 {[%emt 0:00:08]} 35. f6 {[%emt 0:00:03]} 1-0

[Event "FIDE Women World Blitz 2021"]
[Site "Warsaw"]
[Date "2021.12.29"]
[Round "8.16"]
[White "Efimenko, Maria"]
[Black "Kashlinskaya, Alina"]
[Result "0-1"]
[ECO "C01"]
[WhiteElo "2207"]
[BlackElo "2482"]
[Annotator "ChessBase"]
[PlyCount "80"]
[EventDate "2021.12.29"]
[EventType "swiss"]
[EventCountry "POL"]
[Tiebreak "Cut1 Buchholz"]
[SourceTitle "playchess.com"]
[Source "ChessBase"]
[SourceQuality "1"]
[TimeControl "180+2"]

1. e4 {[%emt 0:00:01]} e6 {[%emt 0:00:01]} 2. d4 {[%emt 0:00:01]} d5 {[%emt 0:
00:01]} 3. Nd2 {[%emt 0:00:01]} c5 {[%emt 0:00:01]} 4. Ngf3 {[%emt 0:00:03]}
Nc6 {[%emt 0:00:02]} 5. exd5 {[%emt 0:00:06]} exd5 {[%emt 0:00:02]} 6. dxc5 {
[%emt 0:00:08]} Bxc5 {[%emt 0:00:02]} 7. Nb3 {[%emt 0:00:05]} Bb6 {[%emt 0:00:
03]} 8. c3 {[%emt 0:00:04]} Nf6 {[%emt 0:00:03]} 9. Bd3 {[%emt 0:00:08]} O-O {
[%emt 0:00:03]} 10. O-O {[%emt 0:00:01]} h6 {[%emt 0:00:05]} 11. h3 {[%emt 0:
00:14]} Re8 {[%emt 0:00:01]} 12. Re1 {[%emt 0:00:19]} Bd7 {[%emt 0:00:13]} 13.
Bf4 {[%emt 0:00:17]} Ne4 {[%emt 0:00:03]} 14. Be3 {[%emt 0:00:04]} Bf5 {
[%emt 0:00:15]} 15. Nfd4 {[%emt 0:00:13]} Bg6 {[%emt 0:00:02]} 16. Bb5 {
[%emt 0:00:21]} Rc8 {[%emt 0:00:03]} 17. a4 {[%emt 0:00:24]} Qd6 {[%emt 0:00:
11]} 18. Nxc6 {[%emt 0:00:13]} bxc6 {[%emt 0:00:06]} 19. Bxb6 {[%emt 0:00:02]}
axb6 {[%emt 0:00:03]} 20. Ba6 {[%emt 0:00:36]} Ra8 {[%emt 0:00:05]} 21. Bd3 {
[%emt 0:00:04]} Nxf2 {[%emt 0:00:17]} 22. Kxf2 {[%emt 0:00:03]} Qf4+ {[%emt 0:
00:02]} 23. Qf3 {[%emt 0:00:09]} Qxf3+ {[%emt 0:00:03]} 24. gxf3 {[%emt 0:00:
01]} Bxd3 {[%emt 0:00:01]} 25. Nd4 {[%emt 0:00:01]} c5 {[%emt 0:00:08]} 26. Nc6
{[%emt 0:00:03]} Kf8 {[%emt 0:00:17]} 27. Re3 {[%emt 0:00:04]} Rxe3 {[%emt 0:
00:11]} 28. Kxe3 {[%emt 0:00:02]} Bc2 {[%emt 0:00:01]} 29. a5 {[%emt 0:00:01]}
bxa5 {[%emt 0:00:02]} 30. Rxa5 {[%emt 0:00:02]} Rxa5 {[%emt 0:00:23]} 31. Nxa5
{[%emt 0:00:01]} Ke7 {[%emt 0:00:00]} 32. Nb7 {[%emt 0:00:01]} c4 {[%emt 0:00:
01]} 33. h4 {[%emt 0:00:05]} g5 {[%emt 0:00:09]} 34. hxg5 {[%emt 0:00:05]} hxg5
{[%emt 0:00:01]} 35. Kd4 {[%emt 0:00:02]} Bd1 {[%emt 0:00:02]} 36. Ke3 {
[%emt 0:00:01]} f5 {[%emt 0:00:04]} 37. Na5 {[%emt 0:00:02]} Kd6 {[%emt 0:00:
07]} 38. Kf2 {[%emt 0:00:05]} Kc7 {[%emt 0:00:02]} 39. Ke3 {[%emt 0:00:03]} Kb6
{[%emt 0:00:01]} 40. Nxc4+ {[%emt 0:00:01]} dxc4 {[%emt 0:00:02]} 0-1

[Event "FIDE Women World Blitz 2021"]
[Site "Warsaw"]
[Date "2021.12.29"]
[Round "8.17"]
[White "Strutinskaia, Galina"]
[Black "Zatonskih, Anna"]
[Result "0-1"]
[ECO "A41"]
[WhiteElo "2188"]
[BlackElo "2394"]
[Annotator "NA"]
[PlyCount "60"]
[EventDate "2021.12.29"]
[EventType "swiss"]
[EventCountry "POL"]
[Tiebreak "Cut1 Buchholz"]
[SourceTitle "playchess.com"]
[Source "ChessBase"]
[SourceQuality "1"]
[TimeControl "180+2"]

1. c4 {[%emt 0:00:01]} e5 {[%emt 0:00:02]} 2. Nf3 {[%emt 0:00:01]} d6 {[%emt 0:
00:00]} 3. Nc3 {[%emt 0:00:03]} g6 {[%emt 0:00:07]} 4. d4 {[%emt 0:00:03]} Bg7
{[%emt 0:00:07]} 5. dxe5 {[%emt 0:00:07]} dxe5 {[%emt 0:00:01]} 6. Qxd8+ {
[%emt 0:00:16]} Kxd8 {[%emt 0:00:01]} 7. Bg5+ {[%emt 0:00:02]} f6 {[%emt 0:00:
16]} 8. O-O-O+ {[%emt 0:00:19]} Bd7 {[%emt 0:00:41]} 9. Bd2 {[%emt 0:00:13]}
Ne7 {[%emt 0:00:16]} 10. e4 {[%emt 0:00:02]} c6 {[%emt 0:00:04]} 11. c5 {
[%emt 0:00:07]} Kc7 {[%emt 0:00:10]} 12. Bc4 {[%emt 0:00:09]} b5 {[%emt 0:00:
05]} 13. cxb6+ {[%emt 0:00:17]} axb6 {[%emt 0:00:01]} 14. a3 {[%emt 0:00:03]}
b5 {[%emt 0:00:32]} 15. Bb3 {[%emt 0:00:17]} Na6 {[%emt 0:00:01]} 16. Be3 {
[%emt 0:00:01]} Rhd8 {[%emt 0:00:11]} 17. h3 {[%emt 0:00:04]} Be8 {[%emt 0:00:
28]} 18. g4 {[%emt 0:00:16]} Bd7 {[%emt 0:00:11]} 19. Rhg1 {[%emt 0:00:04]} g5
{[%emt 0:00:02]} 20. Rd2 {[%emt 0:00:12]} Ng6 {[%emt 0:00:04]} 21. Rgd1 {
[%emt 0:00:23]} Bf8 {[%emt 0:00:03]} 22. Ng1 {[%emt 0:00:11]} Bc5 {[%emt 0:00:
04]} 23. Bxc5 {[%emt 0:00:04]} Nxc5 {[%emt 0:00:00]} 24. Bc2 {[%emt 0:00:01]}
Nf4 {[%emt 0:00:06]} 25. Na2 {[%emt 0:00:08]} Nce6 {[%emt 0:00:02]} 26. Kb1 {
[%emt 0:00:10]} Nd4 {[%emt 0:00:01]} 27. Nb4 {[%emt 0:00:02]} Be6 {[%emt 0:00:
03]} 28. Rc1 {[%emt 0:00:05]} Kb6 {[%emt 0:00:01]} 29. Bd1 {[%emt 0:00:02]} Rd6
{[%emt 0:00:01]} 30. Nc2 {[%emt 0:00:15]} Rad8 {[%emt 0:00:10]} 0-1

[Event "FIDE Women World Blitz 2021"]
[Site "Warsaw"]
[Date "2021.12.29"]
[Round "8.18"]
[White "Cyfka, Karina"]
[Black "Osmak, Yuliia"]
[Result "0-1"]
[ECO "E15"]
[WhiteElo "2416"]
[BlackElo "2198"]
[Annotator "NA"]
[PlyCount "68"]
[EventDate "2021.12.29"]
[EventType "swiss"]
[EventCountry "POL"]
[Tiebreak "Cut1 Buchholz"]
[SourceTitle "playchess.com"]
[Source "ChessBase"]
[SourceQuality "1"]
[TimeControl "180+2"]

1. d4 {[%emt 0:00:01]} Nf6 {[%emt 0:00:01]} 2. c4 {[%emt 0:00:01]} e6 {[%emt 0:
00:01]} 3. Nf3 {[%emt 0:00:02]} b6 {[%emt 0:00:09]} 4. g3 {[%emt 0:00:02]} Ba6
{[%emt 0:00:01]} 5. b3 {[%emt 0:00:05]} d5 {[%emt 0:00:09]} 6. Bg2 {[%emt 0:00:
02]} c6 {[%emt 0:00:07]} 7. O-O {[%emt 0:00:05]} Nbd7 {[%emt 0:00:05]} 8. Nbd2
{[%emt 0:00:08]} Bd6 {[%emt 0:00:02]} 9. Bb2 {[%emt 0:00:02]} O-O {[%emt 0:00:
03]} 10. Rc1 {[%emt 0:00:05]} Rc8 {[%emt 0:00:17]} 11. Re1 {[%emt 0:00:24]} Bb7
{[%emt 0:00:43]} 12. e4 {[%emt 0:00:23]} dxe4 {[%emt 0:00:04]} 13. Nxe4 {
[%emt 0:00:02]} Nxe4 {[%emt 0:00:03]} 14. Rxe4 {[%emt 0:00:01]} c5 {[%emt 0:00:
10]} 15. Re1 {[%emt 0:00:06]} Nf6 {[%emt 0:00:06]} 16. Qe2 {[%emt 0:00:20]}
cxd4 {[%emt 0:00:11]} 17. Bxd4 {[%emt 0:00:09]} Qe7 {[%emt 0:00:11]} 18. Red1 {
[%emt 0:00:14]} Rfd8 {[%emt 0:00:07]} 19. Ne5 {[%emt 0:00:12]} Bxg2 20. Kxg2 {
[%emt 0:00:02]} Ba3 {[%emt 0:00:27]} 21. Rb1 {[%emt 0:00:02]} Bc5 {[%emt 0:00:
07]} 22. Bxc5 {[%emt 0:00:34]} Qxc5 {[%emt 0:00:02]} 23. h3 {[%emt 0:00:12]} h6
{[%emt 0:00:06]} 24. Nd3 {[%emt 0:00:06]} Qc6+ {[%emt 0:00:15]} 25. Qf3 {
[%emt 0:00:01]} Kf8 {[%emt 0:00:14]} 26. Ne5 {[%emt 0:00:13]} Qxf3+ {[%emt 0:
00:02]} 27. Kxf3 {[%emt 0:00:02]} Ke7 {[%emt 0:00:07]} 28. Rxd8 {[%emt 0:00:03]
} Kxd8 {[%emt 0:00:00]} 29. Nxf7+ {[%emt 0:00:02]} Ke7 {[%emt 0:00:01]} 30. Ne5
{[%emt 0:00:02]} Rc7 {[%emt 0:00:03]} 31. Rd1 {[%emt 0:00:02]} a6 {[%emt 0:00:
02]} 32. a4 {[%emt 0:00:03]} a5 {[%emt 0:00:02]} 33. Ke3 {[%emt 0:00:03]} Rc5 {
[%emt 0:00:02]} 34. f4 {[%emt 0:00:02]} g5 {[%emt 0:00:02]} 0-1

[Event "FIDE Women World Blitz 2021"]
[Site "Warsaw"]
[Date "2021.12.29"]
[Round "8.19"]
[White "Muetsch, Annmarie"]
[Black "Gaboyan, Susanna"]
[Result "1-0"]
[ECO "B23"]
[WhiteElo "2279"]
[BlackElo "2253"]
[Annotator "NA"]
[PlyCount "109"]
[EventDate "2021.12.29"]
[EventType "swiss"]
[EventCountry "POL"]
[Tiebreak "Cut1 Buchholz"]
[SourceTitle "playchess.com"]
[Source "ChessBase"]
[SourceQuality "1"]
[TimeControl "180+2"]

1. e4 {[%emt 0:00:01]} c5 {[%emt 0:00:01]} 2. Nc3 {[%emt 0:00:01]} Nc6 {
[%emt 0:00:01]} 3. Bb5 {[%emt 0:00:01]} Nd4 {[%emt 0:00:02]} 4. Nf3 {[%emt 0:
00:01]} a6 {[%emt 0:00:17]} 5. Bd3 {[%emt 0:00:02]} Nc6 {[%emt 0:00:04]} 6. O-O
{[%emt 0:00:06]} d6 {[%emt 0:00:04]} 7. h3 {[%emt 0:00:05]} g6 {[%emt 0:00:06]}
8. b3 {[%emt 0:00:03]} Bg7 {[%emt 0:00:01]} 9. Bb2 {[%emt 0:00:00]} e5 {
[%emt 0:00:15]} 10. a3 {[%emt 0:00:13]} Nge7 {[%emt 0:00:03]} 11. Rb1 {[%emt 0:
00:38]} O-O {[%emt 0:00:11]} 12. Be2 {[%emt 0:00:02]} d5 {[%emt 0:00:05]} 13.
exd5 {[%emt 0:00:03]} Nxd5 {[%emt 0:00:02]} 14. Nxd5 {[%emt 0:00:03]} Qxd5 {
[%emt 0:00:02]} 15. Bc4 {[%emt 0:00:01]} Qd6 {[%emt 0:00:04]} 16. a4 {[%emt 0:
00:12]} Rb8 {[%emt 0:00:15]} 17. Qe2 {[%emt 0:00:15]} Bf5 {[%emt 0:00:16]} 18.
Rbc1 {[%emt 0:00:08]} h6 {[%emt 0:00:21]} 19. Rfe1 {[%emt 0:00:05]} Rfe8 {
[%emt 0:00:02]} 20. Nh4 {[%emt 0:00:06]} Bd7 {[%emt 0:00:06]} 21. Qf3 {[%emt 0:
00:07]} Qf6 {[%emt 0:00:24]} 22. Qxf6 {[%emt 0:00:04]} Bxf6 {[%emt 0:00:01]}
23. Nf3 {[%emt 0:00:19]} b5 {[%emt 0:00:16]} 24. axb5 {[%emt 0:00:02]} axb5 {
[%emt 0:00:00]} 25. Bd5 {[%emt 0:00:09]} Nb4 {[%emt 0:00:09]} 26. Be4 {[%emt 0:
00:01]} Bg7 {[%emt 0:00:03]} 27. c3 {[%emt 0:00:00]} Nc6 {[%emt 0:00:04]} 28.
Ra1 {[%emt 0:00:10]} f5 {[%emt 0:00:03]} 29. Bc2 {[%emt 0:00:01]} e4 {[%emt 0:
00:03]} 30. Nh2 {[%emt 0:00:01]} Ra8 {[%emt 0:00:05]} 31. Nf1 {[%emt 0:00:03]}
b4 {[%emt 0:00:06]} 32. Ne3 {[%emt 0:00:03]} bxc3 {[%emt 0:00:03]} 33. dxc3 {
[%emt 0:00:02]} Ne5 {[%emt 0:00:09]} 34. Nd5 {[%emt 0:00:05]} Bc6 {[%emt 0:00:
04]} 35. Nc7 {[%emt 0:00:03]} Rxa1 {[%emt 0:00:03]} 36. Rxa1 {[%emt 0:00:02]}
Rc8 {[%emt 0:00:02]} 37. Ne6 {[%emt 0:00:01]} Bf6 {[%emt 0:00:03]} 38. Nxc5 {
[%emt 0:00:03]} Bb5 {[%emt 0:00:03]} 39. Ne6 {[%emt 0:00:04]} Nd3 {[%emt 0:00:
02]} 40. Bxd3 {[%emt 0:00:08]} exd3 {[%emt 0:00:05]} 41. Rd1 {[%emt 0:00:18]}
Bxc3 {[%emt 0:00:04]} 42. Bxc3 {[%emt 0:00:02]} Rxc3 {[%emt 0:00:01]} 43. Nd4 {
[%emt 0:00:02]} Ba6 {[%emt 0:00:01]} 44. b4 {[%emt 0:00:06]} Bb7 {[%emt 0:00:
07]} 45. b5 {[%emt 0:00:07]} Kf7 {[%emt 0:00:05]} 46. Rd2 {[%emt 0:00:05]} Kf6
{[%emt 0:00:02]} 47. f4 {[%emt 0:00:02]} g5 {[%emt 0:00:02]} 48. g3 {[%emt 0:
00:01]} Rc1+ {[%emt 0:00:01]} 49. Kf2 {[%emt 0:00:02]} Rh1 {[%emt 0:00:04]} 50.
Rxd3 {[%emt 0:00:02]} Rxh3 {[%emt 0:00:01]} 51. Re3 {[%emt 0:00:11]} gxf4 {
[%emt 0:00:04]} 52. Re6+ {[%emt 0:00:01]} Kf7 {[%emt 0:00:01]} 53. gxf4 {
[%emt 0:00:01]} Rd3 {[%emt 0:00:02]} 54. Rd6 {[%emt 0:00:02]} Ke7 {[%emt 0:00:
04]} 55. Nxf5+ {[%emt 0:00:01]} 1-0

[Event "FIDE Women World Blitz 2021"]
[Site "Warsaw"]
[Date "2021.12.29"]
[Round "8.20"]
[White "Nomin-Erdene, Davaademberel"]
[Black "Kulon, Klaudia"]
[Result "0-1"]
[ECO "C56"]
[WhiteElo "2188"]
[BlackElo "2328"]
[Annotator "NA"]
[PlyCount "91"]
[EventDate "2021.12.29"]
[EventType "swiss"]
[EventCountry "POL"]
[Tiebreak "Cut1 Buchholz"]
[SourceTitle "playchess.com"]
[Source "ChessBase"]
[SourceQuality "1"]
[TimeControl "180+2"]

1. e4 {[%emt 0:00:01]} e5 {[%emt 0:00:00]} 2. Nf3 {[%emt 0:00:01]} Nc6 {
[%emt 0:00:01]} 3. Bc4 {[%emt 0:00:00]} Nf6 {[%emt 0:00:01]} 4. d4 {[%emt 0:00:
03]} exd4 {[%emt 0:00:03]} 5. e5 {[%emt 0:00:01]} d5 {[%emt 0:00:06]} 6. Bb5 {
[%emt 0:00:01]} Nd7 {[%emt 0:00:04]} 7. O-O {[%emt 0:00:33]} Bc5 {[%emt 0:00:
10]} 8. Bxc6 {[%emt 0:00:35]} bxc6 {[%emt 0:00:00]} 9. Nxd4 {[%emt 0:00:01]}
Nb8 {[%emt 0:00:15]} 10. Be3 {[%emt 0:00:40]} Bb6 {[%emt 0:00:01]} 11. Qh5 {
[%emt 0:00:20]} O-O {[%emt 0:00:10]} 12. Nc3 c5 {[%emt 0:00:15]} 13. Bg5 {
[%emt 0:00:16]} Qd7 {[%emt 0:00:24]} 14. Nf3 {[%emt 0:00:10]} d4 {[%emt 0:00:
05]} 15. Ne4 {[%emt 0:00:01]} Qf5 {[%emt 0:00:18]} 16. Rfe1 {[%emt 0:00:15]}
Nc6 {[%emt 0:00:02]} 17. h3 {[%emt 0:00:16]} Qg6 {[%emt 0:00:06]} 18. Qh4 {
[%emt 0:00:02]} Re8 {[%emt 0:00:03]} 19. Ng3 {[%emt 0:00:02]} h6 {[%emt 0:00:
10]} 20. Bd2 {[%emt 0:00:01]} c4 {[%emt 0:00:06]} 21. Nh5 {[%emt 0:00:05]} Bf5
{[%emt 0:00:08]} 22. Nf4 {[%emt 0:00:03]} Qh7 {[%emt 0:00:03]} 23. c3 {[%emt 0:
00:07]} d3 {[%emt 0:00:04]} 24. Qg3 {[%emt 0:00:04]} a5 {[%emt 0:00:15]} 25.
Nh5 {[%emt 0:00:06]} Qg6 {[%emt 0:00:01]} 26. Qh4 {[%emt 0:00:02]} a4 {[%emt 0:
00:16]} 27. Nf4 {[%emt 0:00:00]} Qh7 {[%emt 0:00:01]} 28. Nd5 {[%emt 0:00:01]}
Be6 {[%emt 0:00:06]} 29. Nf4 {[%emt 0:00:04]} a3 {[%emt 0:00:04]} 30. bxa3 {
[%emt 0:00:06]} Rxa3 {[%emt 0:00:03]} 31. Qg3 {[%emt 0:00:03]} Rea8 {[%emt 0:
00:06]} 32. Nh4 {[%emt 0:00:02]} Rxa2 {[%emt 0:00:04]} 33. Rad1 Rc2 {[%emt 0:
00:04]} 34. Nh5 {[%emt 0:00:01]} Kh8 {[%emt 0:00:00]} 35. Qf4 {[%emt 0:00:05]}
Raa2 {[%emt 0:00:03]} 36. Nf3 {[%emt 0:00:01]} Qg6 {[%emt 0:00:08]} 37. Ng3 {
[%emt 0:00:01]} Bd5 {[%emt 0:00:01]} 38. Nf1 {[%emt 0:00:02]} Ba5 {[%emt 0:00:
08]} 39. Ne3 {[%emt 0:00:02]} Bxf3 {[%emt 0:00:02]} 40. Qxf3 {[%emt 0:00:01]}
Rxd2 {[%emt 0:00:01]} 41. Rxd2 {[%emt 0:00:03]} Rxd2 {[%emt 0:00:01]} 42. Nxc4
{[%emt 0:00:01]} Ra2 {[%emt 0:00:05]} 43. Qd5 {[%emt 0:00:02]} Bxc3 {[%emt 0:
00:03]} 44. Rd1 {[%emt 0:00:01]} Ra1 {[%emt 0:00:01]} 45. Rxa1 {[%emt 0:00:07]}
Bxa1 {[%emt 0:00:01]} 46. Ne3 {[%emt 0:00:03]} 0-1

[Event "FIDE Women World Blitz 2021"]
[Site "Warsaw"]
[Date "2021.12.29"]
[Round "8.21"]
[White "Mamedjarova, Turkan"]
[Black "Antolak, Julia"]
[Result "1-0"]
[ECO "A58"]
[WhiteElo "2264"]
[BlackElo "2334"]
[Annotator "NA"]
[PlyCount "65"]
[EventDate "2021.12.29"]
[EventType "swiss"]
[EventCountry "POL"]
[Tiebreak "Cut1 Buchholz"]
[SourceTitle "playchess.com"]
[Source "ChessBase"]
[SourceQuality "1"]
[TimeControl "180+2"]

1. d4 {[%emt 0:00:02]} Nf6 {[%emt 0:00:01]} 2. c4 {[%emt 0:00:01]} c5 {[%emt 0:
00:00]} 3. d5 {[%emt 0:00:01]} b5 {[%emt 0:00:01]} 4. cxb5 {[%emt 0:00:02]} a6
{[%emt 0:00:01]} 5. bxa6 {[%emt 0:00:02]} g6 {[%emt 0:00:01]} 6. Nc3 {[%emt 0:
00:02]} Bg7 {[%emt 0:00:02]} 7. e4 {[%emt 0:00:02]} O-O {[%emt 0:00:02]} 8. Nf3
{[%emt 0:00:00]} Qa5 {[%emt 0:00:01]} 9. Bd2 {[%emt 0:00:12]} Bxa6 {[%emt 0:00:
04]} 10. Be2 {[%emt 0:00:06]} Bxe2 {[%emt 0:00:18]} 11. Qxe2 {[%emt 0:00:04]}
Qa6 {[%emt 0:00:01]} 12. Qxa6 {[%emt 0:00:07]} Nxa6 {[%emt 0:00:01]} 13. O-O {
[%emt 0:00:30]} e6 {[%emt 0:00:00]} 14. Bf4 {[%emt 0:00:08]} exd5 {[%emt 0:00:
16]} 15. exd5 {[%emt 0:00:05]} Nb4 {[%emt 0:00:01]} 16. Bd6 {[%emt 0:00:08]}
Rfc8 {[%emt 0:00:04]} 17. Rfd1 {[%emt 0:00:03]} Ra6 {[%emt 0:00:24]} 18. Be5 {
[%emt 0:00:09]} d6 {[%emt 0:00:04]} 19. Bg3 {[%emt 0:00:18]} Nh5 {[%emt 0:00:
15]} 20. Rd2 {[%emt 0:00:21]} Nxg3 {[%emt 0:00:07]} 21. hxg3 {[%emt 0:00:01]}
Rca8 {[%emt 0:00:15]} 22. Nb5 {[%emt 0:00:10]} Rb6 {[%emt 0:00:19]} 23. Nc3 {
[%emt 0:00:05]} Rab8 {[%emt 0:00:11]} 24. a3 {[%emt 0:00:16]} Na6 {[%emt 0:00:
03]} 25. Re1 {[%emt 0:00:12]} h5 {[%emt 0:00:15]} 26. Ng5 {[%emt 0:00:19]} Bh6
{[%emt 0:00:40]} 27. f4 {[%emt 0:00:00]} Bxg5 {[%emt 0:00:03]} 28. fxg5 {
[%emt 0:00:00]} Rxb2 {[%emt 0:00:01]} 29. Rxb2 {[%emt 0:00:03]} Rxb2 {[%emt 0:
00:01]} 30. Re8+ {[%emt 0:00:01]} Kg7 {[%emt 0:00:01]} 31. Ne4 {[%emt 0:00:03]}
Nc7 {[%emt 0:00:11]} 32. Rd8 {[%emt 0:00:03]} Re2 {[%emt 0:00:06]} 33. Nf6 {
[%emt 0:00:03]} 1-0

[Event "FIDE Women World Blitz 2021"]
[Site "Warsaw"]
[Date "2021.12.29"]
[Round "8.22"]
[White "Mamedjarova, Zeinab"]
[Black "Loskutova, Viktoriya"]
[Result "1-0"]
[ECO "D05"]
[WhiteElo "2249"]
[BlackElo "2195"]
[Annotator "NA"]
[PlyCount "106"]
[EventDate "2021.12.29"]
[EventType "swiss"]
[EventCountry "POL"]
[Tiebreak "Cut1 Buchholz"]
[SourceTitle "playchess.com"]
[Source "ChessBase"]
[SourceQuality "1"]
[TimeControl "180+2"]

1. d4 {[%emt 0:00:01]} Nf6 {[%emt 0:00:01]} 2. Nf3 {[%emt 0:00:01]} e6 {
[%emt 0:00:02]} 3. e3 {[%emt 0:00:01]} d5 {[%emt 0:00:02]} 4. Bd3 {[%emt 0:00:
01]} Bd6 {[%emt 0:00:01]} 5. Nbd2 {[%emt 0:00:02]} b6 {[%emt 0:00:08]} 6. O-O {
[%emt 0:00:13]} Bb7 {[%emt 0:00:01]} 7. b3 {[%emt 0:00:01]} O-O {[%emt 0:00:02]
} 8. Bb2 {[%emt 0:00:00]} Ne4 {[%emt 0:00:06]} 9. Ne5 {[%emt 0:00:05]} c5 {
[%emt 0:00:20]} 10. Nxe4 {[%emt 0:00:23]} dxe4 {[%emt 0:00:01]} 11. Bc4 {
[%emt 0:00:06]} Bxe5 {[%emt 0:00:15]} 12. dxe5 {[%emt 0:00:01]} Nc6 {[%emt 0:
00:11]} 13. Qg4 {[%emt 0:00:17]} Na5 {[%emt 0:00:33]} 14. Rad1 {[%emt 0:00:09]}
Qe7 {[%emt 0:00:04]} 15. Bb5 {[%emt 0:00:05]} Rfd8 {[%emt 0:00:04]} 16. Rd6 {
[%emt 0:00:03]} Bd5 {[%emt 0:00:09]} 17. Rd1 {[%emt 0:00:34]} a6 {[%emt 0:00:
08]} 18. Rxd8+ {[%emt 0:00:07]} Qxd8 {[%emt 0:00:15]} 19. c4 {[%emt 0:00:03]}
axb5 {[%emt 0:00:08]} 20. cxd5 {[%emt 0:00:01]} Qe8 {[%emt 0:00:11]} 21. Qxe4 {
[%emt 0:00:18]} Rd8 {[%emt 0:00:34]} 22. h4 {[%emt 0:00:14]} b4 {[%emt 0:00:14]
} 23. h5 {[%emt 0:00:05]} h6 {[%emt 0:00:02]} 24. g4 {[%emt 0:00:16]} exd5 {
[%emt 0:00:08]} 25. Rxd5 {[%emt 0:00:02]} Rxd5 {[%emt 0:00:02]} 26. Qxd5 {
[%emt 0:00:00]} Qe6 {[%emt 0:00:00]} 27. Qa8+ {[%emt 0:00:08]} Kh7 {[%emt 0:00:
02]} 28. Qe4+ {[%emt 0:00:02]} Kg8 {[%emt 0:00:01]} 29. Kg2 {[%emt 0:00:07]}
Nc6 {[%emt 0:00:05]} 30. Kg3 {[%emt 0:00:02]} Ne7 {[%emt 0:00:01]} 31. f4 {
[%emt 0:00:02]} Qd5 {[%emt 0:00:01]} 32. Qxd5 {[%emt 0:00:07]} Nxd5 {[%emt 0:
00:00]} 33. Kf3 {[%emt 0:00:05]} b5 {[%emt 0:00:03]} 34. Ke4 {[%emt 0:00:09]}
Nc7 {[%emt 0:00:04]} 35. f5 {[%emt 0:00:04]} Kf8 {[%emt 0:00:02]} 36. a3 {
[%emt 0:00:04]} bxa3 37. Bxa3 {[%emt 0:00:01]} b4 {[%emt 0:00:04]} 38. Bb2 {
[%emt 0:00:02]} Ke7 {[%emt 0:00:03]} 39. e6 {[%emt 0:00:04]} f6 {[%emt 0:00:02]
} 40. Bc1 {[%emt 0:00:03]} Kd6 {[%emt 0:00:03]} 41. Kd3 {[%emt 0:00:07]} Nd5 {
[%emt 0:00:02]} 42. e4 {[%emt 0:00:02]} Nc3 {[%emt 0:00:01]} 43. Bf4+ {[%emt 0:
00:01]} Kc6 {[%emt 0:00:01]} 44. e5 {[%emt 0:00:04]} Nd5 {[%emt 0:00:02]} 45.
Bg3 {[%emt 0:00:04]} Ne7 {[%emt 0:00:08]} 46. exf6 {[%emt 0:00:01]} gxf6 {
[%emt 0:00:01]} 47. g5 {[%emt 0:00:02]} Nxf5 {[%emt 0:00:03]} 48. gxh6 {
[%emt 0:00:03]} Nxh6 {[%emt 0:00:02]} 49. Bh4 {[%emt 0:00:02]} f5 {[%emt 0:00:
01]} 50. Bg5 {[%emt 0:00:01]} Ng8 {[%emt 0:00:04]} 51. Ke3 {[%emt 0:00:02]} Kd6
{[%emt 0:00:03]} 52. e7 {[%emt 0:00:01]} Nxe7 {[%emt 0:00:03]} 53. Bf4+ {
[%emt 0:00:03]} Kd5 {[%emt 0:00:05]} 1-0